Workbook

Sheet SUMMA
A1: TIME | D1: Keszthely | F1: Balatonmária | H1: I. Sector | J1: Szigliget | L1: Fonyód | N1: II. Sector | P1: Zánka | R1: Balatonöszöd | T1: Örvényes | V1: III.sector | X1: Balatonfüred | Z1: Siófok | AB1: Almádi | AD1: Aliga | AF1: IV.sector
B2: AWS | C2: AWA | D2: AWS | E2: AWA | F2: AWS | G2: AWA | J2: AWS | K2: AWA | L2: AWS | M2: AWA | P2: AWS | Q2: AWA | R2: AWS | S2: AWA | T2: AWS | U2: AWA | X2: AWS | Y2: AWA | Z2: AWS | AA2: AWA | AB2: AWS | AC2: AWA | AD2: AWS | AE2: AWA
A3: 2015.11.20. 19:50 | B3: 13.75269977 | C3: 206 | D3: 11.95464361 | E3: 206 | F3: 15.55075592 | G3: 206 | H3: =AVERAGE(D3,F3) -> 13.75269977 | I3: =AVERAGE(E3,G3) -> 206 | J3: 20.60475159 | K3: 224 | L3: 14.09287255 | M3: 213 | P3: 14.19006478 | Q3: 222 | R3: 12.34341251 | S3: 215 | T3: 6.706263491 | U3: 237 | X3: 4.859611225 | Y3: 241 | Z3: 19.34125268 | AA3: 223 | AB3: 7.580993511 | AC3: 131 | AD3: 9.233261327 | AE3: 218
A4: 2015.11.20. 20:00 | B4: 11.56587472 | C4: 207 | D4: 7.580993511 | E4: 206 | F4: 15.55075592 | G4: 208 | H4: =AVERAGE(D4,F4) -> 11.56587472 | I4: =AVERAGE(E4,G4) -> 207 | J4: 22.93736498 | K4: 225 | L4: 13.31533476 | M4: 219 | P4: 15.16198702 | Q4: 225 | R4: 16.32829372 | S4: 212 | T4: 13.80129588 | U4: 238 | X4: 4.95680345 | Y4: 226 | Z4: 21.67386606 | AA4: 220 | AB4: 5.539956797 | AC4: 206 | AD4: 9.233261327 | AE4: 222
A5: 2015.11.20. 20:10 | B5: 12.19762417 | C5: 208 | D5: 10.01079912 | E5: 208 | F5: 14.38444923 | G5: 208 | H5: 12.19762417 | I5: 208 | J5: 25.65874727 | K5: 228 | L5: 14.57883368 | M5: 216 | P5: 15.16198702 | Q5: 227 | R5: 11.27429804 | S5: 218 | T5: 15.25917925 | U5: 236 | X5: 5.053995674 | Y5: 225 | Z5: 23.4233261 | AA5: 219 | AB5: 7.872570184 | AC5: 193 | AD5: 9.622030226 | AE5: 223
A6: 2015.11.20. 20:20 | B6: 14.14146866 | C6: 209 | D6: 10.20518357 | E6: 209 | F6: 18.07775376 | G6: 209 | H6: 14.14146866 | I6: 209 | J6: 22.06263496 | K6: 229 | L6: 13.70410365 | M6: 222 | P6: 16.03671704 | Q6: 228 | R6: 12.53779696 | S6: 218 | T6: 16.71706261 | U6: 236 | X6: 5.928725695 | Y6: 216 | Z6: 21.38228939 | AA6: 221 | AB6: 8.261339083 | AC6: 190 | AD6: 15.93952482 | AE6: 220
A7: 2015.11.20. 20:30 | B7: 18.20734339 | C7: 220.3333333 | D7: 11.66306694 | E7: 210 | F7: 15.84233259 | G7: 210 | J7: 23.71490278 | K7: 230 | L7: 15.0647948 | M7: 221 | N7: =AVERAGE(F7,J7,L7) -> 18.20734339 | O7: 220.3333333 | P7: 15.16198702 | Q7: 226 | R7: 14.38444923 | S7: 223 | T7: 15.74514037 | U7: 238 | X7: 5.83153347 | Y7: 220 | Z7: 20.2159827 | AA7: 218 | AB7: 10.20518357 | AC7: 201 | AD7: 17.49460041 | AE7: 214
A8: 2015.11.20. 20:40 | B8: 19.63282935 | C8: 222 | D8: 11.27429804 | E8: 211 | F8: 18.46652265 | G8: 213 | J8: 24.2008639 | K8: 231 | L8: 16.23110149 | M8: 222 | N8: 19.63282935 | O8: 222 | P8: 14.09287255 | Q8: 225 | R8: 14.87041035 | S8: 223 | T8: 16.71706261 | U8: 238 | X8: 7.969762409 | Y8: 208 | Z8: 22.35421163 | AA8: 221 | AB8: 15.55075592 | AC8: 215 | AD8: 17.88336931 | AE8: 211
A9: 2015.11.20. 20:50 | B9: 18.85529155 | C9: 219 | D9: 11.46868249 | E9: 203 | F9: 16.91144706 | G9: 209 | J9: 25.85313172 | K9: 229 | L9: 13.80129588 | M9: 219 | N9: 18.85529155 | O9: 219 | P9: 13.21814253 | Q9: 225 | R9: 12.44060474 | S9: 219 | T9: 19.53563712 | U9: 233 | X9: 12.53779696 | Y9: 213 | Z9: 20.70194382 | AA9: 216 | AB9: 19.14686823 | AC9: 222 | AD9: 16.91144706 | AE9: 204
A10: 2015.11.20. 21:00 | B10: 19.60043194 | C10: 217.6666667 | D10: 9.913606899 | E10: 206 | F10: 20.2159827 | G10: 208 | J10: 23.4233261 | K10: 228 | L10: 15.16198702 | M10: 217 | N10: 19.60043194 | O10: 217.6666667 | P10: 14.48164145 | Q10: 224 | R10: 13.21814253 | S10: 219 | T10: 19.63282935 | U10: 237 | X10: 12.73218141 | Y10: 221 | Z10: 20.60475159 | AA10: 219 | AB10: 18.95248378 | AC10: 228 | AD10: 15.93952482 | AE10: 202
A11: 2015.11.20. 21:10 | B11: 15.91522676 | C11: 227 | D11: 10.10799135 | E11: 209 | F11: 19.24406045 | G11: 212 | J11: 24.5896328 | K11: 229 | L11: 14.96760257 | M11: 221 | P11: 12.82937363 | Q11: 227 | R11: 16.42548594 | S11: 222 | T11: 19.4384449 | U11: 238 | V11: =AVERAGE(L11,P11,R11,T11) -> 15.91522676 | W11: =AVERAGE(M11,Q11,S11,U11) -> 227 | X11: 13.41252698 | Y11: 229 | Z11: 19.049676 | AA11: 217 | AB11: 18.6609071 | AC11: 231 | AD11: 17.30021596 | AE11: 204
A12: 2015.11.20. 21:20 | B12: 16.25539955 | C12: 226.75 | D12: 11.76025916 | E12: 206 | F12: 17.68898486 | G12: 214 | J12: 25.36717059 | K12: 228 | L12: 15.16198702 | M12: 220 | P12: 14.09287255 | Q12: 225 | R12: 16.23110149 | S12: 222 | T12: 19.53563712 | U12: 240 | V12: =AVERAGE(L12,P12,R12,T12) -> 16.25539955 | W12: =AVERAGE(M12,Q12,S12,U12) -> 226.75 | X12: 14.6760259 | Y12: 230 | Z12: 22.54859608 | AA12: 219 | AB12: 21.18790494 | AC12: 228 | AD12: 17.10583151 | AE12: 208
A13: 2015.11.20. 21:30 | B13: 15.16198702 | C13: 223.25 | D13: 11.37149027 | E13: 205 | F13: 19.34125268 | G13: 213 | J13: 25.07559392 | K13: 226 | L13: 14.6760259 | M13: 221 | P13: 15.64794814 | Q13: 223 | R13: 11.95464361 | S13: 211 | T13: 18.36933043 | U13: 238 | V13: 15.16198702 | W13: 223.25 | X13: 15.64794814 | Y13: 229 | Z13: 19.53563712 | AA13: 215 | AB13: 20.2159827 | AC13: 224 | AD13: 17.00863929 | AE13: 206
A14: 2015.11.20. 21:40 | B14: 14.26295895 | C14: 222 | D14: 10.6911447 | E14: 209 | F14: 19.73002157 | G14: 213 | J14: 24.39524835 | K14: 227 | L14: 13.02375808 | M14: 214 | P14: 16.42548594 | Q14: 225 | R14: 8.455723532 | S14: 210 | T14: 19.14686823 | U14: 239 | V14: 14.26295895 | W14: 222 | X14: 14.77321812 | Y14: 233 | Z14: 22.64578831 | AA14: 218 | AB14: 19.049676 | AC14: 225 | AD14: 19.63282935 | AE14: 205
A15: 2015.11.20. 21:50 | B15: 15.69654426 | C15: 222.5 | D15: 12.05183584 | E15: 213 | F15: 18.07775376 | G15: 210 | J15: 25.36717059 | K15: 228 | L15: 15.93952482 | M15: 214 | P15: 16.13390927 | Q15: 225 | R15: 11.76025916 | S15: 213 | T15: 18.95248378 | U15: 238 | V15: 15.69654426 | W15: 222.5 | X15: 16.23110149 | Y15: 232 | Z15: 23.22894166 | AA15: 218 | AB15: 20.79913604 | AC15: 224 | AD15: 19.14686823 | AE15: 207
A16: 2015.11.20. 22:00 | B16: 14.57883368 | C16: 219.5 | D16: 12.63498919 | E16: 212 | F16: 19.53563712 | G16: 207 | J16: 24.9784017 | K16: 228 | L16: 14.6760259 | M16: 212 | P16: 13.60691143 | Q16: 221 | R16: 13.12095031 | S16: 208 | T16: 16.91144706 | U16: 237 | V16: 14.57883368 | W16: 219.5 | X16: 16.23110149 | Y16: 229 | Z16: 23.32613388 | AA16: 216 | AB16: 19.92440602 | AC16: 225 | AD16: 18.17494598 | AE16: 206
A17: 2015.11.20. 22:10 | B17: 13.41252698 | C17: 221.5 | D17: 12.34341251 | E17: 213 | F17: 15.93952482 | G17: 207 | J17: 26.14470839 | K17: 229 | L17: 13.50971921 | M17: 213 | P17: 9.427645777 | Q17: 226 | R17: 14.09287255 | S17: 213 | T17: 16.61987039 | U17: 234 | V17: 13.41252698 | W17: 221.5 | X17: 12.82937363 | Y17: 223 | Z17: 24.5896328 | AA17: 218 | AB17: 18.07775376 | AC17: 221 | AD17: 18.56371488 | AE17: 206
A18: 2015.11.20. 22:20 | B18: 19.21976239 | C18: 219 | D18: 12.05183584 | E18: 212 | F18: 14.09287255 | G18: 205 | J18: 26.33909284 | K18: 228 | L18: 14.96760257 | M18: 214 | P18: 9.038876878 | Q18: 229 | R18: 15.35637147 | S18: 215 | T18: 16.71706261 | U18: 235 | X18: 10.98272137 | Y18: 220 | Z18: 27.79697621 | AA18: 224 | AB18: 17.30021596 | AC18: 221 | AD18: 20.79913604 | AE18: 211 | AF18: =AVERAGE(X18,Z18,AB18,AD18) -> 19.21976239 | AG18: =AVERAGE(Y18,AA18,AC18,AE18) -> 219
A19: 2015.11.20. 22:30 | B19: 18.10205181 | C19: 219.75 | D19: 10.88552914 | E19: 214 | F19: 13.80129588 | G19: 203 | J19: 25.36717059 | K19: 227 | L19: 13.12095031 | M19: 209 | P19: 10.98272137 | Q19: 225 | R19: 11.95464361 | S19: 219 | T19: 17.78617708 | U19: 235 | X19: 13.12095031 | Y19: 223 | Z19: 22.25701941 | AA19: 220 | AB19: 16.52267817 | AC19: 220 | AD19: 20.50755937 | AE19: 216 | AF19: =AVERAGE(X19,Z19,AB19,AD19) -> 18.10205181 | AG19: =AVERAGE(Y19,AA19,AC19,AE19) -> 219.75
A20: 2015.11.20. 22:40 | B20: 19.80291574 | C20: 222.5 | D20: 11.17710582 | E20: 211 | F20: 15.35637147 | G20: 203 | J20: 25.85313172 | K20: 228 | L20: 15.16198702 | M20: 212 | P20: 11.85745139 | Q20: 226 | R20: 13.21814253 | S20: 215 | T20: 16.42548594 | U20: 238 | X20: 12.34341251 | Y20: 226 | Z20: 26.82505396 | AA20: 223 | AB20: 17.00863929 | AC20: 225 | AD20: 23.03455721 | AE20: 216 | AF20: 19.80291574 | AG20: 222.5
A21: 2015.11.20. 22:50 | B21: 19.07397406 | C21: 223.75 | D21: 13.41252698 | E21: 210 | F21: 17.39740819 | G21: 205 | J21: 23.52051833 | K21: 224 | L21: 13.80129588 | M21: 209 | P21: 13.31533476 | Q21: 224 | R21: 15.55075592 | S21: 219 | T21: 15.74514037 | U21: 240 | X21: 14.09287255 | Y21: 227 | Z21: 24.88120947 | AA21: 223 | AB21: 17.30021596 | AC21: 227 | AD21: 20.02159825 | AE21: 218 | AF21: 19.07397406 | AG21: 223.75
A22: 2015.11.20. 23:00 | B22: 19.31695462 | C22: 225 | D22: 9.330453552 | E22: 205 | F22: 17.20302374 | G22: 206 | J22: 24.39524835 | K22: 225 | L22: 15.84233259 | M22: 213 | P22: 14.96760257 | Q22: 223 | R22: 13.70410365 | S22: 217 | T22: 15.4535637 | U22: 245 | X22: 15.0647948 | Y22: 232 | Z22: 23.71490278 | AA22: 224 | AB22: 15.93952482 | AC22: 225 | AD22: 22.54859608 | AE22: 219 | AF22: 19.31695462 | AG22: 225
A23: 2015.11.20. 23:10 | B23: 20.87203021 | C23: 225 | D23: 9.427645777 | E23: 202 | F23: 14.57883368 | G23: 206 | J23: 25.26997837 | K23: 226 | L23: 14.77321812 | M23: 209 | P23: 15.35637147 | Q23: 225 | R23: 11.76025916 | S23: 220 | T23: 16.61987039 | U23: 244 | X23: 14.38444923 | Y23: 232 | Z23: 30.12958959 | AA23: 223 | AB23: 18.95248378 | AC23: 225 | AD23: 20.02159825 | AE23: 220 | AF23: 20.87203021 | AG23: 225
A24: 2015.11.20. 23:20 | B24: 20.11879047 | C24: 225.25 | D24: 9.622030225 | E24: 203 | F24: 14.87041035 | G24: 208 | J24: 24.29805612 | K24: 228 | L24: 13.50971921 | M24: 208 | P24: 15.35637147 | Q24: 228 | R24: 13.02375808 | S24: 217 | T24: 15.4535637 | U24: 247 | X24: 14.87041035 | Y24: 233 | Z24: 24.00647945 | AA24: 223 | AB24: 19.63282935 | AC24: 226 | AD24: 21.96544274 | AE24: 219 | AF24: 20.11879047 | AG24: 225.25
A25: 2015.11.20. 23:30 | B25: 20.70194382 | C25: 226.25 | D25: 9.233261327 | E25: 199 | F25: 15.0647948 | G25: 207 | J25: 23.812095 | K25: 229 | L25: 13.70410365 | M25: 211 | P25: 16.91144706 | Q25: 227 | R25: 16.52267816 | S25: 217 | T25: 15.0647948 | U25: 247 | X25: 14.57883367 | Y25: 234 | Z25: 26.63066951 | AA25: 225 | AB25: 20.99352049 | AC25: 226 | AD25: 20.60475159 | AE25: 220 | AF25: 20.70194382 | AG25: 226.25
A26: 2015.11.20. 23:40 | B26: 19.24406045 | C26: 226.75 | D26: 9.71922245 | E26: 197 | F26: 14.19006478 | G26: 211 | J26: 24.39524835 | K26: 231 | L26: 13.80129588 | M26: 211 | P26: 16.23110149 | Q26: 227 | R26: 16.32829372 | S26: 221 | T26: 15.35637147 | U26: 247 | X26: 14.38444923 | Y26: 235 | Z26: 23.13174943 | AA26: 226 | AB26: 20.31317492 | AC26: 226 | AD26: 19.14686823 | AE26: 220 | AF26: 19.24406045 | AG26: 226.75
D27: =AVERAGE(D3:D26) -> 10.82883368 | E27: 207.4583333 | F27: 16.71301294 | G27: 208.375 | H27: 12.91441683 | I27: 207.5 | J27: 24.48434122 | K27: 227.7083333 | L27: 14.44114469 | M27: 215 | N27: 19.07397406 | O27: 219.75 | P27: 14.15361769 | Q27: 225.3333333 | R27: 13.61906046 | S27: 216.9166667 | T27: 16.57127428 | U27: 238.9583333 | V27: 15.04049674 | W27: 223.2142857 | X27: =AVERAGE(X9:X26) -> 14.04967601 | Y27: =AVERAGE(Y9:Y26) -> 227.8333333 | Z27: =AVERAGE(Z3:Z26) -> 23.08315332 | AA27: =AVERAGE(AA3:AA26) -> 220.375 | AB27: =AVERAGE(AB7:AB26) -> 18.28671704 | AC27: =AVERAGE(AC8:AC26) -> 224.4210526 | AD27: =AVERAGE(AD6:AD26) -> 19.0357914 | AE27: =AVERAGE(AE7:AE26) -> 211.6 | AF27: =AVERAGE(AF3:AF26) -> 19.60583151 | AG27: =AVERAGE(AG3:AG26) -> 223.6944444
A28: TIME | D28: Keszthely | F28: Balatonmária | H28: I. Sector | J28: Szigliget | L28: Fonyód | N28: II. Sector | P28: Zánka | R28: Balatonöszöd | T28: Örvényes | V28: III.sector | X28: Balatonfüred | Z28: Siófok | AB28: Almádi | AD28: Aliga | AF28: IV.sector
G31: Nyugati medence északi átlag | L31: =AVERAGE(J27,P27,T27) -> 18.40307773 | M31: =AVERAGE(G27,M27,S27) -> 213.4305556
G32: Nyugati medence déli átlag | L32: =AVERAGE(F27,L27,R27) -> 14.92440603 | M32: =AVERAGE(K27,Q27,U27) -> 230.6666667
G33: Keleti medence északi átlag | L33: =AVERAGE(X27,AB27) -> 16.16819652 | M33: =AVERAGE(Y27,AC27) -> 226.127193
G34: Keleti medence déli átlag | L34: =AVERAGE(Z27,AD27) -> 21.05947236 | M34: =AVERAGE(AA27,AE27) -> 215.9875
G36: ÉSZAKI átlag | L36: =AVERAGE(J27,P27,T27,X27,AB27) -> 17.50912525 | M36: =AVERAGE(K27,Q27,U27,Y27,AC27) -> 228.8508772
G37: Déli átlag | L37: =AVERAGE(D27,F27,L27,R27,Z27,AD27) -> 16.28683275 | M37: =AVERAGE(E27,G27,M27,S27,AA27,AE27) -> 213.2875

Sheet Keszthely-T.
A1: ORSZÁGOS METEOROLÓGIAI SZOLGÁLAT
A2: Szolgáltatási Osztály
A3: 1024 - Budapest II., Kitaibel Pál u. 1.
A4: 1525 - Budapest, Pf.: 38.
A5: Telefon: (1) 346 - 4600; Fax: (1) 346 - 4687 | E5: 1.94384449
A6: Keszthely-Tanyakereszt
A7: dátum | B7: tízperces szélsebesség (m/s) | C7: tízperces szélirány (fok) | D7: tízperces legerősebb széllökés (m/s) | G7: AWS
A8: 2015.11.20. 19:10 | B8: 2.9 | C8: 201 | D8: 6.7 | E8: =B8*$E$5 -> 5.637149021 | F8: =D8*$E$5 -> 13.02375808 | G8: =AVERAGE(E8:F8) -> 9.330453552
A9: 2015.11.20. 19:20 | B9: 2.4 | C9: 200 | D9: 5.2 | E9: =B9*$E$5 -> 4.665226776 | F9: =D9*$E$5 -> 10.10799135 | G9: =AVERAGE(E9:F9) -> 7.386609062
A10: 2015.11.20. 19:30 | B10: 1.9 | C10: 205 | D10: 5 | E10: 3.693304531 | F10: 9.71922245 | G10: 6.70626349
A11: 2015.11.20. 19:40 | B11: 2.5 | C11: 198 | D11: 6.7 | E11: 4.859611225 | F11: 13.02375808 | G11: 8.941684654
A12: 2015.11.20. 19:50 | B12: 2.9 | C12: 206 | D12: 9.4 | E12: 5.637149021 | F12: 18.27213821 | G12: 11.95464361
A13: 2015.11.20. 20:00 | B13: 2.5 | C13: 206 | D13: 5.3 | E13: 4.859611225 | F13: 10.3023758 | G13: 7.580993511
A14: 2015.11.20. 20:10 | B14: 3.1 | C14: 208 | D14: 7.2 | E14: 6.025917919 | F14: 13.99568033 | G14: 10.01079912
A15: 2015.11.20. 20:20 | B15: 3.3 | C15: 209 | D15: 7.2 | E15: 6.414686817 | F15: 13.99568033 | G15: 10.20518357
A16: 2015.11.20. 20:30 | B16: 3.1 | C16: 210 | D16: 8.9 | E16: 6.025917919 | F16: 17.30021596 | G16: 11.66306694
A17: 2015.11.20. 20:40 | B17: 3.5 | C17: 211 | D17: 8.1 | E17: 6.803455715 | F17: 15.74514037 | G17: 11.27429804
A18: 2015.11.20. 20:50 | B18: 3.1 | C18: 203 | D18: 8.7 | E18: 6.025917919 | F18: 16.91144706 | G18: 11.46868249
A19: 2015.11.20. 21:00 | B19: 2.9 | C19: 206 | D19: 7.3 | E19: 5.637149021 | F19: 14.19006478 | G19: 9.913606899
A20: 2015.11.20. 21:10 | B20: 3.3 | C20: 209 | D20: 7.1 | E20: 6.414686817 | F20: 13.80129588 | G20: 10.10799135
A21: 2015.11.20. 21:20 | B21: 3.8 | C21: 206 | D21: 8.3 | E21: 7.386609062 | F21: 16.13390927 | G21: 11.76025916
A22: 2015.11.20. 21:30 | B22: 3.4 | C22: 205 | D22: 8.3 | E22: 6.609071266 | F22: 16.13390927 | G22: 11.37149027
A23: 2015.11.20. 21:40 | B23: 3.7 | C23: 209 | D23: 7.3 | E23: 7.192224613 | F23: 14.19006478 | G23: 10.6911447
A24: 2015.11.20. 21:50 | B24: 3.8 | C24: 213 | D24: 8.6 | E24: 7.386609062 | F24: 16.71706261 | G24: 12.05183584
A25: 2015.11.20. 22:00 | B25: 4.2 | C25: 212 | D25: 8.8 | E25: 8.164146858 | F25: 17.10583151 | G25: 12.63498919
A26: 2015.11.20. 22:10 | B26: 3.8 | C26: 213 | D26: 8.9 | E26: 7.386609062 | F26: 17.30021596 | G26: 12.34341251
A27: 2015.11.20. 22:20 | B27: 3.8 | C27: 212 | D27: 8.6 | E27: 7.386609062 | F27: 16.71706261 | G27: 12.05183584
A28: 2015.11.20. 22:30 | B28: 3.8 | C28: 214 | D28: 7.4 | E28: 7.386609062 | F28: 14.38444923 | G28: 10.88552914
A29: 2015.11.20. 22:40 | B29: 3.6 | C29: 211 | D29: 7.9 | E29: 6.997840164 | F29: =D29*$E$5 -> 15.35637147 | G29: 11.17710582
A30: 2015.11.20. 22:50 | B30: 3.6 | C30: 210 | D30: 10.2 | E30: 6.997840164 | F30: 19.8272138 | G30: 13.41252698
A31: 2015.11.20. 23:00 | B31: 3 | C31: 205 | D31: 6.6 | E31: 5.83153347 | F31: 12.82937363 | G31: 9.330453552
A32: 2015.11.20. 23:10 | B32: 3 | C32: 202 | D32: 6.7 | E32: 5.83153347 | F32: 13.02375808 | G32: 9.427645777
A33: 2015.11.20. 23:20 | B33: 3.3 | C33: 203 | D33: 6.6 | E33: 6.414686817 | F33: 12.82937363 | G33: 9.622030225
A34: 2015.11.20. 23:30 | B34: 3.2 | C34: 199 | D34: 6.3 | E34: 6.220302368 | F34: 12.24622029 | G34: 9.233261327
A35: 2015.11.20. 23:40 | B35: 3.4 | C35: 197 | D35: 6.6 | E35: 6.609071266 | F35: 12.82937363 | G35: 9.71922245
A36: 2015.11.20. 23:50 | B36: 2.8 | C36: 201 | D36: 7.3 | E36: 5.442764572 | F36: 14.19006478 | G36: 9.816414674
A37: 2015.11.21. 00:00 | B37: 3 | C37: 196 | D37: 6 | E37: 5.83153347 | F37: 11.66306694 | G37: 8.747300205
E38: =AVERAGE(E8:E37) -> 6.259179258 | F38: =AVERAGE(F8:F37) -> 14.46220301 | G38: =F38/E38 -> 2.310559006

Sheet Balatonmáriafürdő
A1: ORSZÁGOS METEOROLÓGIAI SZOLGÁLAT
A2: Szolgáltatási Osztály
A3: 1024 - Budapest II., Kitaibel Pál u. 1.
A4: 1525 - Budapest, Pf.: 38.
A5: Telefon: (1) 346 - 4600; Fax: (1) 346 - 4687 | F5: 1.94384449
A6: Balatonmáiafürdő
A7: dátum | B7: tízperces szélsebesség (m/s) | C7: tízperces szélirány (fok) | D7: tízperces legerősebb széllökés (m/s) | E7: 10-min AVG | F7: Max Gust | G7: AWS
A8: 2015.11.20. 19:10 | B8: 3.9 | C8: 201 | D8: 7 | E8: =B8*$F$5 -> 7.580993511 | F8: =D8*$F$5 -> 13.60691143 | G8: =AVERAGE(E8:F8) -> 10.59395247
A9: 2015.11.20. 19:20 | B9: 5.2 | C9: 206 | D9: 9.2 | E9: 10.10799135 | F9: 17.88336931 | G9: =AVERAGE(E9:F9) -> 13.99568033
A10: 2015.11.20. 19:30 | B10: 4.7 | C10: 210 | D10: 9.9 | E10: 9.136069103 | F10: 19.24406045 | G10: 14.19006478
A11: 2015.11.20. 19:40 | B11: 5.1 | C11: 207 | D11: 9.2 | E11: 9.913606899 | F11: 17.88336931 | G11: 13.8984881
A12: 2015.11.20. 19:50 | B12: 5.7 | C12: 206 | D12: 10.3 | E12: 11.07991359 | F12: 20.02159825 | G12: 15.55075592
A13: 2015.11.20. 20:00 | B13: 6.3 | C13: 208 | D13: 9.7 | E13: 12.24622029 | F13: 18.85529155 | G13: 15.55075592
A14: 2015.11.20. 20:10 | B14: 5.7 | C14: 208 | D14: 9.1 | E14: 11.07991359 | F14: 17.68898486 | G14: 14.38444923
A15: 2015.11.20. 20:20 | B15: 7 | C15: 209 | D15: 11.6 | E15: 13.60691143 | F15: 22.54859608 | G15: 18.07775376
A16: 2015.11.20. 20:30 | B16: 6.2 | C16: 210 | D16: 10.1 | E16: 12.05183584 | F16: 19.63282935 | G16: 15.84233259
A17: 2015.11.20. 20:40 | B17: 6.7 | C17: 213 | D17: 12.3 | E17: 13.02375808 | F17: 23.90928723 | G17: 18.46652265
A18: 2015.11.20. 20:50 | B18: 6.3 | C18: 209 | D18: 11.1 | E18: 12.24622029 | F18: 21.57667384 | G18: 16.91144706
A19: 2015.11.20. 21:00 | B19: 7.6 | C19: 208 | D19: 13.2 | E19: 14.77321812 | F19: 25.65874727 | G19: 20.2159827
A20: 2015.11.20. 21:10 | B20: 6.8 | C20: 212 | D20: 13 | E20: 13.21814253 | F20: 25.26997837 | G20: 19.24406045
A21: 2015.11.20. 21:20 | B21: 6.5 | C21: 214 | D21: 11.7 | E21: 12.63498919 | F21: 22.74298053 | G21: 17.68898486
A22: 2015.11.20. 21:30 | B22: 7.3 | C22: 213 | D22: 12.6 | E22: 14.19006478 | F22: 24.49244057 | G22: 19.34125268
A23: 2015.11.20. 21:40 | B23: 8.1 | C23: 213 | D23: 12.2 | E23: 15.74514037 | F23: 23.71490278 | G23: 19.73002157
A24: 2015.11.20. 21:50 | B24: 7.2 | C24: 210 | D24: 11.4 | E24: 13.99568033 | F24: 22.15982719 | G24: 18.07775376
A25: 2015.11.20. 22:00 | B25: 7 | C25: 207 | D25: 13.1 | E25: 13.60691143 | F25: 25.46436282 | G25: 19.53563712
A26: 2015.11.20. 22:10 | B26: 6 | C26: 207 | D26: 10.4 | E26: 11.66306694 | F26: 20.2159827 | G26: 15.93952482
A27: 2015.11.20. 22:20 | B27: 5 | C27: 205 | D27: 9.5 | E27: 9.71922245 | F27: 18.46652265 | G27: 14.09287255
A28: 2015.11.20. 22:30 | B28: 5.2 | C28: 203 | D28: 9 | E28: 10.10799135 | F28: 17.49460041 | G28: 13.80129588
A29: 2015.11.20. 22:40 | B29: 5.3 | C29: 203 | D29: 10.5 | E29: 10.3023758 | F29: 20.41036715 | G29: 15.35637147
A30: 2015.11.20. 22:50 | B30: 6.5 | C30: 205 | D30: 11.4 | E30: 12.63498919 | F30: 22.15982719 | G30: 17.39740819
A31: 2015.11.20. 23:00 | B31: 6.1 | C31: 206 | D31: 11.6 | E31: 11.85745139 | F31: 22.54859608 | G31: 17.20302374
A32: 2015.11.20. 23:10 | B32: 5.4 | C32: 206 | D32: 9.6 | E32: 10.49676025 | F32: 18.6609071 | G32: 14.57883368
A33: 2015.11.20. 23:20 | B33: 5.5 | C33: 208 | D33: 9.8 | E33: 10.6911447 | F33: 19.049676 | G33: 14.87041035
A34: 2015.11.20. 23:30 | B34: 5.5 | C34: 207 | D34: 10 | E34: 10.6911447 | F34: 19.4384449 | G34: 15.0647948
A35: 2015.11.20. 23:40 | B35: 5.6 | C35: 211 | D35: 9 | E35: 10.88552914 | F35: 17.49460041 | G35: 14.19006478
A36: 2015.11.20. 23:50 | B36: 5.7 | C36: 208 | D36: 10.3 | E36: 11.07991359 | F36: 20.02159825 | G36: 15.55075592
A37: 2015.11.21. 00:00 | B37: 6.2 | C37: 208 | D37: 10.3 | E37: 12.05183584 | F37: 20.02159825 | G37: 16.03671704

Sheet Szigliget
A1: ORSZÁGOS METEOROLÓGIAI SZOLGÁLAT
A2: Szolgáltatási Osztály
A3: 1024 - Budapest II., Kitaibel Pál u. 1.
A4: 1525 - Budapest, Pf.: 38.
A5: Telefon: (1) 346 - 4600; Fax: (1) 346 - 4687 | E5: 1.94384449
A6: Szigliget
A7: dátum | B7: tízperces szélsebesség (m/s) | C7: tízperces szélirány (fok) | D7: tízperces legerősebb széllökés (m/s)
A8: 2015.11.20. 19:10 | B8: 7.7 | C8: 221 | D8: 9.1 | E8: =B8*$E$5 -> 14.96760257 | F8: =D8*$E$5 -> 17.68898486 | G8: =AVERAGE(E8:F8) -> 16.32829372
A9: 2015.11.20. 19:20 | B9: 8.1 | C9: 223 | D9: 9.5 | E9: =B9*$E$5 -> 15.74514037 | F9: =D9*$E$5 -> 18.46652265 | G9: =AVERAGE(E9:F9) -> 17.10583151
A10: 2015.11.20. 19:30 | B10: 8.7 | C10: 228 | D10: 10.8 | E10: 16.91144706 | F10: 20.99352049 | G10: 18.95248378
A11: 2015.11.20. 19:40 | B11: 8.8 | C11: 227 | D11: 10.6 | E11: 17.10583151 | F11: 20.60475159 | G11: 18.85529155
A12: 2015.11.20. 19:50 | B12: 9.7 | C12: 224 | D12: 11.5 | E12: 18.85529155 | F12: 22.35421163 | G12: 20.60475159
A13: 2015.11.20. 20:00 | B13: 10.4 | C13: 225 | D13: 13.2 | E13: 20.2159827 | F13: 25.65874727 | G13: 22.93736498
A14: 2015.11.20. 20:10 | B14: 11.4 | C14: 228 | D14: 15 | E14: 22.15982719 | F14: 29.15766735 | G14: 25.65874727
A15: 2015.11.20. 20:20 | B15: 10.4 | C15: 229 | D15: 12.3 | E15: 20.2159827 | F15: 23.90928723 | G15: 22.06263496
A16: 2015.11.20. 20:30 | B16: 10.8 | C16: 230 | D16: 13.6 | E16: 20.99352049 | F16: 26.43628506 | G16: 23.71490278
A17: 2015.11.20. 20:40 | B17: 11 | C17: 231 | D17: 13.9 | E17: 21.38228939 | F17: 27.01943841 | G17: 24.2008639
A18: 2015.11.20. 20:50 | B18: 11.5 | C18: 229 | D18: 15.1 | E18: 22.35421163 | F18: 29.3520518 | G18: 25.85313172
A19: 2015.11.20. 21:00 | B19: 10.8 | C19: 228 | D19: 13.3 | E19: 20.99352049 | F19: 25.85313172 | G19: 23.4233261
A20: 2015.11.20. 21:10 | B20: 11 | C20: 229 | D20: 14.3 | E20: =B20*$E$5 -> 21.38228939 | F20: =D20*$E$5 -> 27.79697621 | G20: =AVERAGE(E20:F20) -> 24.5896328
A21: 2015.11.20. 21:20 | B21: 11.5 | C21: 228 | D21: 14.6 | E21: 22.35421163 | F21: 28.38012955 | G21: 25.36717059
A22: 2015.11.20. 21:30 | B22: 11.2 | C22: 226 | D22: 14.6 | E22: 21.77105829 | F22: 28.38012955 | G22: 25.07559392
A23: 2015.11.20. 21:40 | B23: 11.4 | C23: 227 | D23: 13.7 | E23: 22.15982719 | F23: 26.63066951 | G23: 24.39524835
A24: 2015.11.20. 21:50 | B24: 11.9 | C24: 228 | D24: 14.2 | E24: 23.13174943 | F24: 27.60259176 | G24: 25.36717059
A25: 2015.11.20. 22:00 | B25: 11.7 | C25: 228 | D25: 14 | E25: 22.74298053 | F25: 27.21382286 | G25: 24.9784017
A26: 2015.11.20. 22:10 | B26: 11.9 | C26: 229 | D26: 15 | E26: 23.13174943 | F26: 29.15766735 | G26: 26.14470839
A27: 2015.11.20. 22:20 | B27: 12.1 | C27: 228 | D27: 15 | E27: 23.52051833 | F27: 29.15766735 | G27: 26.33909284
A28: 2015.11.20. 22:30 | B28: 12 | C28: 227 | D28: 14.1 | E28: 23.32613388 | F28: 27.40820731 | G28: 25.36717059
A29: 2015.11.20. 22:40 | B29: 11.6 | C29: 228 | D29: 15 | E29: 22.54859608 | F29: 29.15766735 | G29: 25.85313172
A30: 2015.11.20. 22:50 | B30: 11.1 | C30: 224 | D30: 13.1 | E30: 21.57667384 | F30: 25.46436282 | G30: 23.52051833
A31: 2015.11.20. 23:00 | B31: 11.4 | C31: 225 | D31: 13.7 | E31: 22.15982719 | F31: 26.63066951 | G31: 24.39524835
A32: 2015.11.20. 23:10 | B32: 11.7 | C32: 226 | D32: 14.3 | E32: 22.74298053 | F32: 27.79697621 | G32: 25.26997837
A33: 2015.11.20. 23:20 | B33: 11.5 | C33: 228 | D33: 13.5 | E33: 22.35421163 | F33: 26.24190061 | G33: 24.29805612
A34: 2015.11.20. 23:30 | B34: 11 | C34: 229 | D34: 13.5 | E34: 21.38228939 | F34: 26.24190061 | G34: 23.812095
A35: 2015.11.20. 23:40 | B35: 10.8 | C35: 231 | D35: 14.3 | E35: 20.99352049 | F35: 27.79697621 | G35: 24.39524835
A36: 2015.11.20. 23:50 | B36: 9.5 | C36: 230 | D36: 11 | E36: 18.46652265 | F36: 21.38228939 | G36: 19.92440602
A37: 2015.11.21. 00:00 | B37: 9.5 | C37: 233 | D37: 11 | E37: 18.46652265 | F37: 21.38228939 | G37: 19.92440602

Sheet Fonyód
A1: ORSZÁGOS METEOROLÓGIAI SZOLGÁLAT
A2: Szolgáltatási Osztály
A3: 1024 - Budapest II., Kitaibel Pál u. 1.
A4: 1525 - Budapest, Pf.: 38.
A5: Telefon: (1) 346 - 4600; Fax: (1) 346 - 4687 | E5: 1.94384449
A6: Fonyód
A7: dátum | B7: tízperces szélsebesség (m/s) | C7: tízperces szélirány (fok) | D7: tízperces legerősebb széllökés (m/s)
A8: 2015.11.20. 19:10 | B8: 2.8 | C8: 210 | D8: 5.8 | E8: =B8*$E$5 -> 5.442764572 | F8: =D8*$E$5 -> 11.27429804 | G8: =AVERAGE(E8:F8) -> 8.358531307
A9: 2015.11.20. 19:20 | B9: 4.1 | C9: 213 | D9: 8.6 | E9: =B9*$E$5 -> 7.969762409 | F9: =D9*$E$5 -> 16.71706261 | G9: =AVERAGE(E9:F9) -> 12.34341251
A10: 2015.11.20. 19:30 | B10: 4.2 | C10: 208 | D10: 8.4 | E10: 8.164146858 | F10: 16.32829372 | G10: 12.24622029
A11: 2015.11.20. 19:40 | B11: 3.6 | C11: 211 | D11: 8.8 | E11: 6.997840164 | F11: 17.10583151 | G11: 12.05183584
A12: 2015.11.20. 19:50 | B12: 4.2 | C12: 213 | D12: 10.3 | E12: 8.164146858 | F12: 20.02159825 | G12: 14.09287255
A13: 2015.11.20. 20:00 | B13: 4.3 | C13: 219 | D13: 9.4 | E13: 8.358531307 | F13: 18.27213821 | G13: 13.31533476
A14: 2015.11.20. 20:10 | B14: 4.2 | C14: 216 | D14: 10.8 | E14: 8.164146858 | F14: 20.99352049 | G14: 14.57883368
A15: 2015.11.20. 20:20 | B15: 4.7 | C15: 222 | D15: 9.4 | E15: 9.136069103 | F15: 18.27213821 | G15: 13.70410365
A16: 2015.11.20. 20:30 | B16: 4.9 | C16: 221 | D16: 10.6 | E16: 9.524838001 | F16: 20.60475159 | G16: 15.0647948
A17: 2015.11.20. 20:40 | B17: 5.2 | C17: 222 | D17: 11.5 | E17: 10.10799135 | F17: 22.35421163 | G17: 16.23110149
A18: 2015.11.20. 20:50 | B18: 4.8 | C18: 219 | D18: 9.4 | E18: 9.330453552 | F18: 18.27213821 | G18: 13.80129588
A19: 2015.11.20. 21:00 | B19: 5.1 | C19: 217 | D19: 10.5 | E19: 9.913606899 | F19: 20.41036715 | G19: 15.16198702
A20: 2015.11.20. 21:10 | B20: 4.6 | C20: 221 | D20: 10.8 | E20: 8.941684654 | F20: 20.99352049 | G20: 14.96760257
A21: 2015.11.20. 21:20 | B21: 5.4 | C21: 220 | D21: 10.2 | E21: 10.49676025 | F21: 19.8272138 | G21: 15.16198702
A22: 2015.11.20. 21:30 | B22: 4.9 | C22: 221 | D22: 10.2 | E22: 9.524838001 | F22: 19.8272138 | G22: 14.6760259
A23: 2015.11.20. 21:40 | B23: 4.8 | C23: 214 | D23: 8.6 | E23: 9.330453552 | F23: 16.71706261 | G23: 13.02375808
A24: 2015.11.20. 21:50 | B24: 5.1 | C24: 214 | D24: 11.3 | E24: 9.913606899 | F24: 21.96544274 | G24: 15.93952482
A25: 2015.11.20. 22:00 | B25: 5.2 | C25: 212 | D25: 9.9 | E25: 10.10799135 | F25: 19.24406045 | G25: 14.6760259
A26: 2015.11.20. 22:10 | B26: 4.9 | C26: 213 | D26: 9 | E26: 9.524838001 | F26: 17.49460041 | G26: 13.50971921
A27: 2015.11.20. 22:20 | B27: 4.7 | C27: 214 | D27: 10.7 | E27: 9.136069103 | F27: 20.79913604 | G27: 14.96760257
A28: 2015.11.20. 22:30 | B28: 4.5 | C28: 209 | D28: 9 | E28: 8.747300205 | F28: 17.49460041 | G28: 13.12095031
A29: 2015.11.20. 22:40 | B29: 5.3 | C29: 212 | D29: 10.3 | E29: 10.3023758 | F29: 20.02159825 | G29: 15.16198702
A30: 2015.11.20. 22:50 | B30: 4.6 | C30: 209 | D30: 9.6 | E30: 8.941684654 | F30: 18.6609071 | G30: 13.80129588
A31: 2015.11.20. 23:00 | B31: 5.4 | C31: 213 | D31: 10.9 | E31: 10.49676025 | F31: 21.18790494 | G31: 15.84233259
A32: 2015.11.20. 23:10 | B32: 5.4 | C32: 209 | D32: 9.8 | E32: 10.49676025 | F32: 19.049676 | G32: 14.77321812
A33: 2015.11.20. 23:20 | B33: 5.1 | C33: 208 | D33: 8.8 | E33: 9.913606899 | F33: 17.10583151 | G33: 13.50971921
A34: 2015.11.20. 23:30 | B34: 4.3 | C34: 211 | D34: 9.8 | E34: 8.358531307 | F34: 19.049676 | G34: 13.70410365
A35: 2015.11.20. 23:40 | B35: 4.7 | C35: 211 | D35: 9.5 | E35: 9.136069103 | F35: 18.46652265 | G35: 13.80129588
A36: 2015.11.20. 23:50 | B36: 4 | C36: 210 | D36: 9.1 | E36: 7.77537796 | F36: 17.68898486 | G36: 12.73218141
A37: 2015.11.21. 00:00 | B37: 3.9 | C37: 219 | D37: 7.4 | E37: 7.580993511 | F37: 14.38444923 | G37: 10.98272137

Sheet Zánka
A1: ORSZÁGOS METEOROLÓGIAI SZOLGÁLAT
A2: Szolgáltatási Osztály
A3: 1024 - Budapest II., Kitaibel Pál u. 1.
A4: 1525 - Budapest, Pf.: 38.
A5: Telefon: (1) 346 - 4600; Fax: (1) 346 - 4687 | E5: 1.94384449
A6: Zánka
A7: dátum | B7: tízperces szélsebesség (m/s) | C7: tízperces szélirány (fok) | D7: tízperces legerősebb széllökés (m/s)
A8: 2015.11.20. 19:10 | B8: 5.1 | C8: 217 | D8: 6.6 | E8: =B8*$E$5 -> 9.913606899 | F8: =D8*$E$5 -> 12.82937363 | G8: =AVERAGE(E8:F8) -> 11.37149027
A9: 2015.11.20. 19:20 | B9: 5.9 | C9: 221 | D9: 7 | E9: =B9*$E$5 -> 11.46868249 | F9: =D9*$E$5 -> 13.60691143 | G9: =AVERAGE(E9:F9) -> 12.53779696
A10: 2015.11.20. 19:30 | B10: 5.9 | C10: 226 | D10: 7 | E10: 11.46868249 | F10: 13.60691143 | G10: 12.53779696
A11: 2015.11.20. 19:40 | B11: 6.4 | C11: 223 | D11: 7.6 | E11: 12.44060474 | F11: 14.77321812 | G11: 13.60691143
A12: 2015.11.20. 19:50 | B12: 6.7 | C12: 222 | D12: 7.9 | E12: 13.02375808 | F12: 15.35637147 | G12: 14.19006478
A13: 2015.11.20. 20:00 | B13: 7.2 | C13: 225 | D13: 8.4 | E13: 13.99568033 | F13: 16.32829372 | G13: 15.16198702
A14: 2015.11.20. 20:10 | B14: 7.2 | C14: 227 | D14: 8.4 | E14: 13.99568033 | F14: 16.32829372 | G14: 15.16198702
A15: 2015.11.20. 20:20 | B15: 7.2 | C15: 228 | D15: 9.3 | E15: 13.99568033 | F15: 18.07775376 | G15: 16.03671704
A16: 2015.11.20. 20:30 | B16: 7.3 | C16: 226 | D16: 8.3 | E16: 14.19006478 | F16: 16.13390927 | G16: 15.16198702
A17: 2015.11.20. 20:40 | B17: 6.6 | C17: 225 | D17: 7.9 | E17: 12.82937363 | F17: 15.35637147 | G17: 14.09287255
A18: 2015.11.20. 20:50 | B18: 6.3 | C18: 225 | D18: 7.3 | E18: 12.24622029 | F18: 14.19006478 | G18: 13.21814253
A19: 2015.11.20. 21:00 | B19: 6.3 | C19: 224 | D19: 8.6 | E19: 12.24622029 | F19: 16.71706261 | G19: 14.48164145
A20: 2015.11.20. 21:10 | B20: 5.7 | C20: 227 | D20: 7.5 | E20: 11.07991359 | F20: 14.57883368 | G20: 12.82937363
A21: 2015.11.20. 21:20 | B21: 6.5 | C21: 225 | D21: 8 | E21: 12.63498919 | F21: 15.55075592 | G21: 14.09287255
A22: 2015.11.20. 21:30 | B22: 7.1 | C22: 223 | D22: 9 | E22: 13.80129588 | F22: 17.49460041 | G22: 15.64794814
A23: 2015.11.20. 21:40 | B23: 7.5 | C23: 225 | D23: 9.4 | E23: 14.57883368 | F23: 18.27213821 | G23: 16.42548594
A24: 2015.11.20. 21:50 | B24: 7.5 | C24: 225 | D24: 9.1 | E24: 14.57883368 | F24: 17.68898486 | G24: 16.13390927
A25: 2015.11.20. 22:00 | B25: 6.1 | C25: 221 | D25: 7.9 | E25: 11.85745139 | F25: 15.35637147 | G25: 13.60691143
A26: 2015.11.20. 22:10 | B26: 4.2 | C26: 226 | D26: 5.5 | E26: 8.164146858 | F26: 10.6911447 | G26: 9.427645777
A27: 2015.11.20. 22:20 | B27: 4.1 | C27: 229 | D27: 5.2 | E27: 7.969762409 | F27: 10.10799135 | G27: 9.038876878
A28: 2015.11.20. 22:30 | B28: 5 | C28: 225 | D28: 6.3 | E28: 9.71922245 | F28: 12.24622029 | G28: 10.98272137
A29: 2015.11.20. 22:40 | B29: 5.5 | C29: 226 | D29: 6.7 | E29: 10.6911447 | F29: 13.02375808 | G29: 11.85745139
A30: 2015.11.20. 22:50 | B30: 6.1 | C30: 224 | D30: 7.6 | E30: 11.85745139 | F30: 14.77321812 | G30: 13.31533476
A31: 2015.11.20. 23:00 | B31: 6.9 | C31: 223 | D31: 8.5 | E31: 13.41252698 | F31: 16.52267817 | G31: 14.96760257
A32: 2015.11.20. 23:10 | B32: 6.9 | C32: 225 | D32: 8.9 | E32: 13.41252698 | F32: 17.30021596 | G32: 15.35637147
A33: 2015.11.20. 23:20 | B33: 6.7 | C33: 228 | D33: 9.1 | E33: 13.02375808 | F33: 17.68898486 | G33: 15.35637147
A34: 2015.11.20. 23:30 | B34: 7.1 | C34: 227 | D34: 10.3 | E34: 13.80129588 | F34: 20.02159825 | G34: 16.91144706
A35: 2015.11.20. 23:40 | B35: 7.2 | C35: 227 | D35: 9.5 | E35: 13.99568033 | F35: 18.46652265 | G35: 16.23110149
A36: 2015.11.20. 23:50 | B36: 6.9 | C36: 228 | D36: 8.8 | E36: 13.41252698 | F36: 17.10583151 | G36: 15.25917925
A37: 2015.11.21. 00:00 | B37: 6.8 | C37: 230 | D37: 9 | E37: 13.21814253 | F37: 17.49460041 | G37: 15.35637147

Sheet Balatonőszöd
A1: ORSZÁGOS METEOROLÓGIAI SZOLGÁLAT
A2: Szolgáltatási Osztály
A3: 1024 - Budapest II., Kitaibel Pál u. 1.
A4: 1525 - Budapest, Pf.: 38.
A5: Telefon: (1) 346 - 4600; Fax: (1) 346 - 4687 | E5: 1.94384449
A6: Balatonőszöd
A7: dátum | B7: tízperces szélsebesség (m/s) | C7: tízperces szélirány (fok) | D7: tízperces legerősebb széllökés (m/s)
A8: 2015.11.20. 19:10 | B8: 2.6 | C8: 210 | D8: 7.7 | E8: =B8*$E$5 -> 5.053995674 | F8: =D8*$E$5 -> 14.96760257 | G8: =AVERAGE(E8:F8) -> 10.01079912
A9: 2015.11.20. 19:20 | B9: 3 | C9: 215 | D9: 9 | E9: =B9*$E$5 -> 5.83153347 | F9: =D9*$E$5 -> 17.49460041 | G9: =AVERAGE(E9:F9) -> 11.66306694
A10: 2015.11.20. 19:30 | B10: 2.9 | C10: 219 | D10: 6.1 | E10: 5.637149021 | F10: 11.85745139 | G10: 8.747300205
A11: 2015.11.20. 19:40 | B11: 3.4 | C11: 217 | D11: 9.4 | E11: 6.609071266 | F11: 18.27213821 | G11: 12.44060474
A12: 2015.11.20. 19:50 | B12: 3.6 | C12: 215 | D12: 9.1 | E12: 6.997840164 | F12: 17.68898486 | G12: 12.34341251
A13: 2015.11.20. 20:00 | B13: 3.7 | C13: 212 | D13: 13.1 | E13: 7.192224613 | F13: 25.46436282 | G13: 16.32829372
A14: 2015.11.20. 20:10 | B14: 3.2 | C14: 218 | D14: 8.4 | E14: 6.220302368 | F14: 16.32829372 | G14: 11.27429804
A15: 2015.11.20. 20:20 | B15: 3.6 | C15: 218 | D15: 9.3 | E15: 6.997840164 | F15: 18.07775376 | G15: 12.53779696
A16: 2015.11.20. 20:30 | B16: 4 | C16: 223 | D16: 10.8 | E16: 7.77537796 | F16: 20.99352049 | G16: 14.38444923
A17: 2015.11.20. 20:40 | B17: 3.9 | C17: 223 | D17: 11.4 | E17: 7.580993511 | F17: 22.15982719 | G17: 14.87041035
A18: 2015.11.20. 20:50 | B18: 3.7 | C18: 219 | D18: 9.1 | E18: 7.192224613 | F18: 17.68898486 | G18: 12.44060474
A19: 2015.11.20. 21:00 | B19: 3.7 | C19: 219 | D19: 9.9 | E19: 7.192224613 | F19: 19.24406045 | G19: 13.21814253
A20: 2015.11.20. 21:10 | B20: 4 | C20: 222 | D20: 12.9 | E20: 7.77537796 | F20: 25.07559392 | G20: 16.42548594
A21: 2015.11.20. 21:20 | B21: 3.7 | C21: 222 | D21: 13 | E21: 7.192224613 | F21: 25.26997837 | G21: 16.23110149
A22: 2015.11.20. 21:30 | B22: 3.8 | C22: 211 | D22: 8.5 | E22: 7.386609062 | F22: 16.52267817 | G22: 11.95464361
A23: 2015.11.20. 21:40 | B23: 2.6 | C23: 210 | D23: 6.1 | E23: 5.053995674 | F23: 11.85745139 | G23: 8.455723532
A24: 2015.11.20. 21:50 | B24: 3 | C24: 213 | D24: 9.1 | E24: 5.83153347 | F24: 17.68898486 | G24: 11.76025916
A25: 2015.11.20. 22:00 | B25: 3.4 | C25: 208 | D25: 10.1 | E25: 6.609071266 | F25: 19.63282935 | G25: 13.12095031
A26: 2015.11.20. 22:10 | B26: 3.9 | C26: 213 | D26: 10.6 | E26: 7.580993511 | F26: 20.60475159 | G26: 14.09287255
A27: 2015.11.20. 22:20 | B27: 3.7 | C27: 215 | D27: 12.1 | E27: 7.192224613 | F27: 23.52051833 | G27: 15.35637147
A28: 2015.11.20. 22:30 | B28: 3.4 | C28: 219 | D28: 8.9 | E28: 6.609071266 | F28: 17.30021596 | G28: 11.95464361
A29: 2015.11.20. 22:40 | B29: 3.9 | C29: 215 | D29: 9.7 | E29: 7.580993511 | F29: 18.85529155 | G29: 13.21814253
A30: 2015.11.20. 22:50 | B30: 3.9 | C30: 219 | D30: 12.1 | E30: 7.580993511 | F30: 23.52051833 | G30: 15.55075592
A31: 2015.11.20. 23:00 | B31: 3.4 | C31: 217 | D31: 10.7 | E31: 6.609071266 | F31: 20.79913604 | G31: 13.70410365
A32: 2015.11.20. 23:10 | B32: 3.3 | C32: 220 | D32: 8.8 | E32: 6.414686817 | F32: 17.10583151 | G32: 11.76025916
A33: 2015.11.20. 23:20 | B33: 3.8 | C33: 217 | D33: 9.6 | E33: 7.386609062 | F33: 18.6609071 | G33: 13.02375808
A34: 2015.11.20. 23:30 | B34: 3.8 | C34: 217 | D34: 13.2 | E34: 7.386609062 | F34: 25.65874727 | G34: 16.52267816
A35: 2015.11.20. 23:40 | B35: 3.6 | C35: 221 | D35: 13.2 | E35: 6.997840164 | F35: 25.65874727 | G35: 16.32829372
A36: 2015.11.20. 23:50 | B36: 3.6 | C36: 219 | D36: 9.9 | E36: 6.997840164 | F36: 19.24406045 | G36: 13.12095031
A37: 2015.11.21. 00:00 | B37: 3.3 | C37: 221 | D37: 9 | E37: 6.414686817 | F37: 17.49460041 | G37: 11.95464361
B38: =AVERAGE(B8:B37) -> 3.513333333 | C38: =AVERAGE(C8:C37) -> 216.9 | D38: =AVERAGE(D8:D37) -> 10.02666667 | E38: 6.829373642 | F38: 19.49028075 | G38: 13.1598272

Sheet Örvényes
A1: ORSZÁGOS METEOROLÓGIAI SZOLGÁLAT
A2: Szolgáltatási Osztály
A3: 1024 - Budapest II., Kitaibel Pál u. 1.
A4: 1525 - Budapest, Pf.: 38.
A5: Telefon: (1) 346 - 4600; Fax: (1) 346 - 4687 | E5: 1.94384449
A6: Örvényes
A7: dátum | B7: tízperces szélsebesség (m/s) | C7: tízperces szélirány (fok) | D7: tízperces legerősebb széllökés (m/s)
A8: 2015.11.20. 19:10 | B8: 0.5 | C8: 277 | D8: 1.1 | E8: =B8*$E$5 -> 0.971922245 | F8: =D8*$E$5 -> 2.138228939 | G8: =AVERAGE(E8:F8) -> 1.555075592
A9: 2015.11.20. 19:20 | B9: 1.1 | C9: 258 | D9: 1.8 | E9: =B9*$E$5 -> 2.138228939 | F9: =D9*$E$5 -> 3.498920082 | G9: =AVERAGE(E9:F9) -> 2.818574511
A10: 2015.11.20. 19:30 | B10: 1.4 | C10: 254 | D10: 2.2 | E10: 2.721382286 | F10: 4.276457878 | G10: 3.498920082
A11: 2015.11.20. 19:40 | B11: 2.2 | C11: 245 | D11: 3 | E11: 4.276457878 | F11: 5.83153347 | G11: 5.053995674
A12: 2015.11.20. 19:50 | B12: 2.7 | C12: 237 | D12: 4.2 | E12: 5.248380123 | F12: 8.164146858 | G12: 6.706263491
A13: 2015.11.20. 20:00 | B13: 5.3 | C13: 238 | D13: 8.9 | E13: 10.3023758 | F13: 17.30021596 | G13: 13.80129588
A14: 2015.11.20. 20:10 | B14: 6.9 | C14: 236 | D14: 8.8 | E14: 13.41252698 | F14: 17.10583151 | G14: 15.25917925
A15: 2015.11.20. 20:20 | B15: 7.5 | C15: 236 | D15: 9.7 | E15: 14.57883368 | F15: 18.85529155 | G15: 16.71706261
A16: 2015.11.20. 20:30 | B16: 7.2 | C16: 238 | D16: 9 | E16: 13.99568033 | F16: 17.49460041 | G16: 15.74514037
A17: 2015.11.20. 20:40 | B17: 7.5 | C17: 238 | D17: 9.7 | E17: 14.57883368 | F17: 18.85529155 | G17: 16.71706261
A18: 2015.11.20. 20:50 | B18: 9 | C18: 233 | D18: 11.1 | E18: 17.49460041 | F18: 21.57667384 | G18: 19.53563712
A19: 2015.11.20. 21:00 | B19: 9.2 | C19: 237 | D19: 11 | E19: 17.88336931 | F19: 21.38228939 | G19: 19.63282935
A20: 2015.11.20. 21:10 | B20: 8.8 | C20: 238 | D20: 11.2 | E20: 17.10583151 | F20: 21.77105829 | G20: 19.4384449
A21: 2015.11.20. 21:20 | B21: 8.7 | C21: 240 | D21: 11.4 | E21: 16.91144706 | F21: 22.15982719 | G21: 19.53563712
A22: 2015.11.20. 21:30 | B22: 8.3 | C22: 238 | D22: 10.6 | E22: 16.13390927 | F22: 20.60475159 | G22: 18.36933043
A23: 2015.11.20. 21:40 | B23: 8.4 | C23: 239 | D23: 11.3 | E23: 16.32829372 | F23: 21.96544274 | G23: 19.14686823
A24: 2015.11.20. 21:50 | B24: 8.8 | C24: 238 | D24: 10.7 | E24: 17.10583151 | F24: 20.79913604 | G24: 18.95248378
A25: 2015.11.20. 22:00 | B25: 7.9 | C25: 237 | D25: 9.5 | E25: 15.35637147 | F25: 18.46652265 | G25: 16.91144706
A26: 2015.11.20. 22:10 | B26: 7.9 | C26: 234 | D26: 9.2 | E26: 15.35637147 | F26: 17.88336931 | G26: 16.61987039
A27: 2015.11.20. 22:20 | B27: 7.7 | C27: 235 | D27: 9.5 | E27: 14.96760257 | F27: 18.46652265 | G27: 16.71706261
A28: 2015.11.20. 22:30 | B28: 8.2 | C28: 235 | D28: 10.1 | E28: 15.93952482 | F28: 19.63282935 | G28: 17.78617708
A29: 2015.11.20. 22:40 | B29: 7.5 | C29: 238 | D29: 9.4 | E29: 14.57883368 | F29: 18.27213821 | G29: 16.42548594
A30: 2015.11.20. 22:50 | B30: 6.8 | C30: 240 | D30: 9.4 | E30: 13.21814253 | F30: 18.27213821 | G30: 15.74514037
A31: 2015.11.20. 23:00 | B31: 6.4 | C31: 245 | D31: 9.5 | E31: 12.44060474 | F31: 18.46652265 | G31: 15.4535637
A32: 2015.11.20. 23:10 | B32: 6.9 | C32: 244 | D32: 10.2 | E32: 13.41252698 | F32: 19.8272138 | G32: 16.61987039
A33: 2015.11.20. 23:20 | B33: 6.8 | C33: 247 | D33: 9.1 | E33: 13.21814253 | F33: 17.68898486 | G33: 15.4535637
A34: 2015.11.20. 23:30 | B34: 6.5 | C34: 247 | D34: 9 | E34: 12.63498919 | F34: 17.49460041 | G34: 15.0647948
A35: 2015.11.20. 23:40 | B35: 6.3 | C35: 247 | D35: 9.5 | E35: 12.24622029 | F35: 18.46652265 | G35: 15.35637147
A36: 2015.11.20. 23:50 | B36: 7 | C36: 245 | D36: 10 | E36: 13.60691143 | F36: 19.4384449 | G36: 16.52267817
A37: 2015.11.21. 00:00 | B37: 6.7 | C37: 246 | D37: 9.4 | E37: 13.02375808 | F37: 18.27213821 | G37: 15.64794814

Sheet Balatonfüred
A1: ORSZÁGOS METEOROLÓGIAI SZOLGÁLAT
A2: Szolgáltatási Osztály
A3: 1024 - Budapest II., Kitaibel Pál u. 1.
A4: 1525 - Budapest, Pf.: 38.
A5: Telefon: (1) 346 - 4600; Fax: (1) 346 - 4687 | E5: 1.94384449
A6: Balatonfüred
A7: dátum | B7: tízperces szélsebesség (m/s) | C7: tízperces szélirány (fok) | D7: tízperces legerősebb széllökés (m/s)
A8: 2015.11.20. 19:10 | B8: 0.9 | C8: 241 | D8: 1.8 | E8: =B8*$E$5 -> 1.749460041 | F8: =D8*$E$5 -> 3.498920082 | G8: =AVERAGE(E8:F8) -> 2.624190062
A9: 2015.11.20. 19:20 | B9: 1 | C9: 258 | D9: 1.5 | E9: =B9*$E$5 -> 1.94384449 | F9: =D9*$E$5 -> 2.915766735 | G9: =AVERAGE(E9:F9) -> 2.429805613
A10: 2015.11.20. 19:30 | B10: 1.5 | C10: 268 | D10: 2.6 | E10: 2.915766735 | F10: 5.053995674 | G10: 3.984881205
A11: 2015.11.20. 19:40 | B11: 2.1 | C11: 257 | D11: 3.1 | E11: 4.082073429 | F11: 6.025917919 | G11: 5.053995674
A12: 2015.11.20. 19:50 | B12: 2 | C12: 241 | D12: 3 | E12: 3.88768898 | F12: 5.83153347 | G12: 4.859611225
A13: 2015.11.20. 20:00 | B13: 2.2 | C13: 226 | D13: 2.9 | E13: 4.276457878 | F13: 5.637149021 | G13: 4.95680345
A14: 2015.11.20. 20:10 | B14: 2.1 | C14: 225 | D14: 3.1 | E14: 4.082073429 | F14: 6.025917919 | G14: 5.053995674
A15: 2015.11.20. 20:20 | B15: 2.6 | C15: 216 | D15: 3.5 | E15: 5.053995674 | F15: 6.803455715 | G15: 5.928725695
A16: 2015.11.20. 20:30 | B16: 2.5 | C16: 220 | D16: 3.5 | E16: 4.859611225 | F16: 6.803455715 | G16: 5.83153347
A17: 2015.11.20. 20:40 | B17: 3.2 | C17: 208 | D17: 5 | E17: 6.220302368 | F17: 9.71922245 | G17: 7.969762409
A18: 2015.11.20. 20:50 | B18: 5.5 | C18: 213 | D18: 7.4 | E18: 10.6911447 | F18: 14.38444923 | G18: 12.53779696
A19: 2015.11.20. 21:00 | B19: 5.2 | C19: 221 | D19: 7.9 | E19: 10.10799135 | F19: 15.35637147 | G19: 12.73218141
A20: 2015.11.20. 21:10 | B20: 5.4 | C20: 229 | D20: 8.4 | E20: 10.49676025 | F20: 16.32829372 | G20: 13.41252698
A21: 2015.11.20. 21:20 | B21: 5.9 | C21: 230 | D21: 9.2 | E21: 11.46868249 | F21: 17.88336931 | G21: 14.6760259
A22: 2015.11.20. 21:30 | B22: 5.9 | C22: 229 | D22: 10.2 | E22: 11.46868249 | F22: 19.8272138 | G22: 15.64794814
A23: 2015.11.20. 21:40 | B23: 6 | C23: 233 | D23: 9.2 | E23: 11.66306694 | F23: 17.88336931 | G23: 14.77321812
A24: 2015.11.20. 21:50 | B24: 6.5 | C24: 232 | D24: 10.2 | E24: 12.63498919 | F24: 19.8272138 | G24: 16.23110149
A25: 2015.11.20. 22:00 | B25: 6.8 | C25: 229 | D25: 9.9 | E25: 13.21814253 | F25: 19.24406045 | G25: 16.23110149
A26: 2015.11.20. 22:10 | B26: 5.4 | C26: 223 | D26: 7.8 | E26: 10.49676025 | F26: 15.16198702 | G26: 12.82937363
A27: 2015.11.20. 22:20 | B27: 4.7 | C27: 220 | D27: 6.6 | E27: 9.136069103 | F27: 12.82937363 | G27: 10.98272137
A28: 2015.11.20. 22:30 | B28: 5.2 | C28: 223 | D28: 8.3 | E28: 10.10799135 | F28: 16.13390927 | G28: 13.12095031
A29: 2015.11.20. 22:40 | B29: 5.2 | C29: 226 | D29: 7.5 | E29: 10.10799135 | F29: 14.57883368 | G29: 12.34341251
A30: 2015.11.20. 22:50 | B30: 5.3 | C30: 227 | D30: 9.2 | E30: 10.3023758 | F30: 17.88336931 | G30: 14.09287255
A31: 2015.11.20. 23:00 | B31: 6.2 | C31: 232 | D31: 9.3 | E31: 12.05183584 | F31: 18.07775376 | G31: 15.0647948
A32: 2015.11.20. 23:10 | B32: 5.9 | C32: 232 | D32: 8.9 | E32: 11.46868249 | F32: 17.30021596 | G32: 14.38444923
A33: 2015.11.20. 23:20 | B33: 6.3 | C33: 233 | D33: 9 | E33: 12.24622029 | F33: 17.49460041 | G33: 14.87041035
A34: 2015.11.20. 23:30 | B34: 5.8 | C34: 234 | D34: 9.2 | E34: 11.27429804 | F34: 17.88336931 | G34: 14.57883367
A35: 2015.11.20. 23:40 | B35: 5.9 | C35: 235 | D35: 8.9 | E35: 11.46868249 | F35: 17.30021596 | G35: 14.38444923
A36: 2015.11.20. 23:50 | B36: 6.4 | C36: 232 | D36: 9.3 | E36: 12.44060474 | F36: 18.07775376 | G36: 15.25917925
A37: 2015.11.21. 00:00 | B37: 6.6 | C37: 232 | D37: 9.6 | E37: 12.82937363 | F37: 18.6609071 | G37: 15.74514037

Sheet Siófok
A1: ORSZÁGOS METEOROLÓGIAI SZOLGÁLAT
A2: Szolgáltatási Osztály
A3: 1024 - Budapest II., Kitaibel Pál u. 1.
A4: 1525 - Budapest, Pf.: 38.
A5: Telefon: (1) 346 - 4600; Fax: (1) 346 - 4687 | E5: 1.94384449
A6: Siófok
A7: dátum | B7: tízperces szélsebesség (m/s) | C7: tízperces szélirány (fok) | D7: tízperces legerősebb széllökés (m/s)
A8: 2015.11.20. 19:10 | B8: 2.4 | C8: 241 | D8: 3.1 | E8: =B8*$E$5 -> 4.665226776 | F8: =D8*$E$5 -> 6.025917919 | G8: =AVERAGE(E8:F8) -> 5.345572348
A9: 2015.11.20. 19:20 | B9: 2.9 | C9: 231 | D9: 5 | E9: =B9*$E$5 -> 5.637149021 | F9: =D9*$E$5 -> 9.71922245 | G9: =AVERAGE(E9:F9) -> 7.678185735
A10: 2015.11.20. 19:30 | B10: 4.7 | C10: 236 | D10: 7.4 | E10: 9.136069103 | F10: 14.38444923 | G10: 11.76025916
A11: 2015.11.20. 19:40 | B11: 5.4 | C11: 244 | D11: 7.1 | E11: 10.49676025 | F11: 13.80129588 | G11: 12.14902806
A12: 2015.11.20. 19:50 | B12: 8.2 | C12: 223 | D12: 11.7 | E12: 15.93952482 | F12: 22.74298053 | G12: 19.34125268
A13: 2015.11.20. 20:00 | B13: 9.1 | C13: 220 | D13: 13.2 | E13: 17.68898486 | F13: 25.65874727 | G13: 21.67386606
A14: 2015.11.20. 20:10 | B14: 10 | C14: 219 | D14: 14.1 | E14: 19.4384449 | F14: 27.40820731 | G14: 23.4233261
A15: 2015.11.20. 20:20 | B15: 9.1 | C15: 221 | D15: 12.9 | E15: 17.68898486 | F15: 25.07559392 | G15: 21.38228939
A16: 2015.11.20. 20:30 | B16: 8.6 | C16: 218 | D16: 12.2 | E16: 16.71706261 | F16: 23.71490278 | G16: 20.2159827
A17: 2015.11.20. 20:40 | B17: 9.1 | C17: 221 | D17: 13.9 | E17: 17.68898486 | F17: 27.01943841 | G17: 22.35421163
A18: 2015.11.20. 20:50 | B18: 8.6 | C18: 216 | D18: 12.7 | E18: 16.71706261 | F18: 24.68682502 | G18: 20.70194382
A19: 2015.11.20. 21:00 | B19: 8.7 | C19: 219 | D19: 12.5 | E19: 16.91144706 | F19: 24.29805613 | G19: 20.60475159
A20: 2015.11.20. 21:10 | B20: 8.1 | C20: 217 | D20: 11.5 | E20: 15.74514037 | F20: 22.35421163 | G20: 19.049676
A21: 2015.11.20. 21:20 | B21: 9.1 | C21: 219 | D21: 14.1 | E21: 17.68898486 | F21: 27.40820731 | G21: 22.54859608
A22: 2015.11.20. 21:30 | B22: 8.5 | C22: 215 | D22: 11.6 | E22: 16.52267817 | F22: 22.54859608 | G22: 19.53563712
A23: 2015.11.20. 21:40 | B23: 9.6 | C23: 218 | D23: 13.7 | E23: 18.6609071 | F23: 26.63066951 | G23: 22.64578831
A24: 2015.11.20. 21:50 | B24: 9.8 | C24: 218 | D24: 14.1 | E24: 19.049676 | F24: 27.40820731 | G24: 23.22894166
A25: 2015.11.20. 22:00 | B25: 9.8 | C25: 216 | D25: 14.2 | E25: 19.049676 | F25: 27.60259176 | G25: 23.32613388
A26: 2015.11.20. 22:10 | B26: 10.4 | C26: 218 | D26: 14.9 | E26: 20.2159827 | F26: 28.9632829 | G26: 24.5896328
A27: 2015.11.20. 22:20 | B27: 11.2 | C27: 224 | D27: 17.4 | E27: 21.77105829 | F27: 33.82289413 | G27: 27.79697621
A28: 2015.11.20. 22:30 | B28: 9.2 | C28: 220 | D28: 13.7 | E28: 17.88336931 | F28: 26.63066951 | G28: 22.25701941
A29: 2015.11.20. 22:40 | B29: 11.2 | C29: 223 | D29: 16.4 | E29: 21.77105829 | F29: 31.87904964 | G29: 26.82505396
A30: 2015.11.20. 22:50 | B30: 10.2 | C30: 223 | D30: 15.4 | E30: 19.8272138 | F30: 29.93520515 | G30: 24.88120947
A31: 2015.11.20. 23:00 | B31: 9.9 | C31: 224 | D31: 14.5 | E31: 19.24406045 | F31: 28.18574511 | G31: 23.71490278
A32: 2015.11.20. 23:10 | B32: 11.8 | C32: 223 | D32: 19.2 | E32: 22.93736498 | F32: 37.32181421 | G32: 30.12958959
A33: 2015.11.20. 23:20 | B33: 10.7 | C33: 223 | D33: 14 | E33: 20.79913604 | F33: 27.21382286 | G33: 24.00647945
A34: 2015.11.20. 23:30 | B34: 11.1 | C34: 225 | D34: 16.3 | E34: 21.57667384 | F34: 31.68466519 | G34: 26.63066951
A35: 2015.11.20. 23:40 | B35: 9.9 | C35: 226 | D35: 13.9 | E35: 19.24406045 | F35: 27.01943841 | G35: 23.13174943
A36: 2015.11.20. 23:50 | B36: 10.7 | C36: 224 | D36: 16 | E36: 20.79913604 | F36: 31.10151184 | G36: 25.95032394
A37: 2015.11.21. 00:00 | B37: 10.1 | C37: 227 | D37: 15.5 | E37: 19.63282935 | F37: 30.12958959 | G37: 24.88120947

Sheet Balatonalmádi
A1: ORSZÁGOS METEOROLÓGIAI SZOLGÁLAT
A2: Szolgáltatási Osztály
A3: 1024 - Budapest II., Kitaibel Pál u. 1.
A4: 1525 - Budapest, Pf.: 38.
A5: Telefon: (1) 346 - 4600; Fax: (1) 346 - 4687 | E5: 1.94384449
A6: Balatonalmádi
A7: dátum | B7: tízperces szélsebesség (m/s) | C7: tízperces szélirány (fok) | D7: tízperces legerősebb széllökés (m/s)
A8: 2015.11.20. 19:10 | B8: 0.1 | C8: 129 | D8: 0.5 | E8: =B8*$E$5 -> 0.194384449 | F8: =D8*$E$5 -> 0.971922245 | G8: =AVERAGE(E8:F8) -> 0.583153347
A9: 2015.11.20. 19:20 | B9: 0 | C9: 76 | D9: 0 | E9: =B9*$E$5 -> 0 | F9: =D9*$E$5 -> 0 | G9: =AVERAGE(E9:F9) -> 0
A10: 2015.11.20. 19:30 | B10: 0.1 | C10: 65 | D10: 0.5 | E10: 0.194384449 | F10: 0.971922245 | G10: 0.583153347
A11: 2015.11.20. 19:40 | B11: 0.3 | C11: 82 | D11: 1.2 | E11: 0.583153347 | F11: 2.332613388 | G11: 1.457883368
A12: 2015.11.20. 19:50 | B12: 1.8 | C12: 131 | D12: 6 | E12: 3.498920082 | F12: 11.66306694 | G12: 7.580993511
A13: 2015.11.20. 20:00 | B13: 1.8 | C13: 206 | D13: 3.9 | E13: 3.498920082 | F13: 7.580993511 | G13: 5.539956797
A14: 2015.11.20. 20:10 | B14: 2.8 | C14: 193 | D14: 5.3 | E14: 5.442764572 | F14: 10.3023758 | G14: 7.872570184
A15: 2015.11.20. 20:20 | B15: 3.3 | C15: 190 | D15: 5.2 | E15: 6.414686817 | F15: 10.10799135 | G15: 8.261339083
A16: 2015.11.20. 20:30 | B16: 4 | C16: 201 | D16: 6.5 | E16: 7.77537796 | F16: 12.63498919 | G16: 10.20518357
A17: 2015.11.20. 20:40 | B17: 6.2 | C17: 215 | D17: 9.8 | E17: 12.05183584 | F17: 19.049676 | G17: 15.55075592
A18: 2015.11.20. 20:50 | B18: 7.3 | C18: 222 | D18: 12.4 | E18: 14.19006478 | F18: 24.10367168 | G18: 19.14686823
A19: 2015.11.20. 21:00 | B19: 7.1 | C19: 228 | D19: 12.4 | E19: 13.80129588 | F19: 24.10367168 | G19: 18.95248378
A20: 2015.11.20. 21:10 | B20: 7.8 | C20: 231 | D20: 11.4 | E20: 15.16198702 | F20: 22.15982719 | G20: 18.6609071
A21: 2015.11.20. 21:20 | B21: 8.8 | C21: 228 | D21: 13 | E21: 17.10583151 | F21: 25.26997837 | G21: 21.18790494
A22: 2015.11.20. 21:30 | B22: 9.1 | C22: 224 | D22: 11.7 | E22: 17.68898486 | F22: 22.74298053 | G22: 20.2159827
A23: 2015.11.20. 21:40 | B23: 8.3 | C23: 225 | D23: 11.3 | E23: 16.13390927 | F23: 21.96544274 | G23: 19.049676
A24: 2015.11.20. 21:50 | B24: 8.7 | C24: 224 | D24: 12.7 | E24: 16.91144706 | F24: 24.68682502 | G24: 20.79913604
A25: 2015.11.20. 22:00 | B25: 8.1 | C25: 225 | D25: 12.4 | E25: 15.74514037 | F25: 24.10367168 | G25: 19.92440602
A26: 2015.11.20. 22:10 | B26: 8 | C26: 221 | D26: 10.6 | E26: 15.55075592 | F26: 20.60475159 | G26: 18.07775376
A27: 2015.11.20. 22:20 | B27: 7.6 | C27: 221 | D27: 10.2 | E27: 14.77321812 | F27: 19.8272138 | G27: 17.30021596
A28: 2015.11.20. 22:30 | B28: 7.2 | C28: 220 | D28: 9.8 | E28: 13.99568033 | F28: 19.049676 | G28: 16.52267817
A29: 2015.11.20. 22:40 | B29: 6.9 | C29: 225 | D29: 10.6 | E29: 13.41252698 | F29: 20.60475159 | G29: 17.00863929
A30: 2015.11.20. 22:50 | B30: 6.4 | C30: 227 | D30: 11.4 | E30: 12.44060474 | F30: 22.15982719 | G30: 17.30021596
A31: 2015.11.20. 23:00 | B31: 6.6 | C31: 225 | D31: 9.8 | E31: 12.82937363 | F31: 19.049676 | G31: 15.93952482
A32: 2015.11.20. 23:10 | B32: 7.5 | C32: 225 | D32: 12 | E32: 14.57883368 | F32: 23.32613388 | G32: 18.95248378
A33: 2015.11.20. 23:20 | B33: 7.3 | C33: 226 | D33: 12.9 | E33: 14.19006478 | F33: 25.07559392 | G33: 19.63282935
A34: 2015.11.20. 23:30 | B34: 8.7 | C34: 226 | D34: 12.9 | E34: 16.91144706 | F34: 25.07559392 | G34: 20.99352049
A35: 2015.11.20. 23:40 | B35: 7.8 | C35: 226 | D35: 13.1 | E35: 15.16198702 | F35: 25.46436282 | G35: 20.31317492
A36: 2015.11.20. 23:50 | B36: 8.5 | C36: 223 | D36: 12.1 | E36: 16.52267817 | F36: 23.52051833 | G36: 20.02159825
A37: 2015.11.21. 00:00 | B37: 7.6 | C37: 223 | D37: 12.7 | E37: 14.77321812 | F37: 24.68682502 | G37: 19.73002157

Sheet Balatonaliga
A1: ORSZÁGOS METEOROLÓGIAI SZOLGÁLAT
A2: Szolgáltatási Osztály
A3: 1024 - Budapest II., Kitaibel Pál u. 1.
A4: 1525 - Budapest, Pf.: 38.
A5: Telefon: (1) 346 - 4600; Fax: (1) 346 - 4687 | E5: 1.94384449
A6: Balatonaliga
A7: dátum | B7: tízperces szélsebesség (m/s) | C7: tízperces szélirány (fok) | D7: tízperces legerősebb széllökés (m/s)
A8: 2015.11.20. 19:10 | B8: 5.9 | C8: 180 | D8: 7.5 | E8: =B8*$E$5 -> 11.46868249 | F8: =D8*$E$5 -> 14.57883368 | G8: =AVERAGE(E8:F8) -> 13.02375808
A9: 2015.11.20. 19:20 | B9: 6 | C9: 189 | D9: 7.8 | E9: =B9*$E$5 -> 11.66306694 | F9: =D9*$E$5 -> 15.16198702 | G9: =AVERAGE(E9:F9) -> 13.41252698
A10: 2015.11.20. 19:30 | B10: 5.9 | C10: 198 | D10: 7.3 | E10: 11.46868249 | F10: 14.19006478 | G10: 12.82937363
A11: 2015.11.20. 19:40 | B11: 5.5 | C11: 211 | D11: 7.1 | E11: 10.6911447 | F11: 13.80129588 | G11: 12.24622029
A12: 2015.11.20. 19:50 | B12: 4.3 | C12: 218 | D12: 5.2 | E12: 8.358531307 | F12: 10.10799135 | G12: 9.233261327
A13: 2015.11.20. 20:00 | B13: 4.2 | C13: 222 | D13: 5.3 | E13: 8.164146858 | F13: 10.3023758 | G13: 9.233261327
A14: 2015.11.20. 20:10 | B14: 4.4 | C14: 223 | D14: 5.5 | E14: 8.552915756 | F14: 10.6911447 | G14: 9.622030226
A15: 2015.11.20. 20:20 | B15: 6.2 | C15: 220 | D15: 10.2 | E15: 12.05183584 | F15: 19.8272138 | G15: 15.93952482
A16: 2015.11.20. 20:30 | B16: 8.1 | C16: 214 | D16: 9.9 | E16: 15.74514037 | F16: 19.24406045 | G16: 17.49460041
A17: 2015.11.20. 20:40 | B17: 8.1 | C17: 211 | D17: 10.3 | E17: 15.74514037 | F17: 20.02159825 | G17: 17.88336931
A18: 2015.11.20. 20:50 | B18: 7.4 | C18: 204 | D18: 10 | E18: 14.38444923 | F18: 19.4384449 | G18: 16.91144706
A19: 2015.11.20. 21:00 | B19: 7.1 | C19: 202 | D19: 9.3 | E19: 13.80129588 | F19: 18.07775376 | G19: 15.93952482
A20: 2015.11.20. 21:10 | B20: 7.8 | C20: 204 | D20: 10 | E20: 15.16198702 | F20: 19.4384449 | G20: 17.30021596
A21: 2015.11.20. 21:20 | B21: 7.8 | C21: 208 | D21: 9.8 | E21: 15.16198702 | F21: 19.049676 | G21: 17.10583151
A22: 2015.11.20. 21:30 | B22: 7.7 | C22: 206 | D22: 9.8 | E22: 14.96760257 | F22: 19.049676 | G22: 17.00863929
A23: 2015.11.20. 21:40 | B23: 8.5 | C23: 205 | D23: 11.7 | E23: 16.52267817 | F23: 22.74298053 | G23: 19.63282935
A24: 2015.11.20. 21:50 | B24: 8.7 | C24: 207 | D24: 11 | E24: 16.91144706 | F24: 21.38228939 | G24: 19.14686823
A25: 2015.11.20. 22:00 | B25: 8 | C25: 206 | D25: 10.7 | E25: 15.55075592 | F25: 20.79913604 | G25: 18.17494598
A26: 2015.11.20. 22:10 | B26: 8.2 | C26: 206 | D26: 10.9 | E26: 15.93952482 | F26: 21.18790494 | G26: 18.56371488
A27: 2015.11.20. 22:20 | B27: 9.3 | C27: 211 | D27: 12.1 | E27: 18.07775376 | F27: 23.52051833 | G27: 20.79913604
A28: 2015.11.20. 22:30 | B28: 9.2 | C28: 216 | D28: 11.9 | E28: 17.88336931 | F28: 23.13174943 | G28: 20.50755937
A29: 2015.11.20. 22:40 | B29: 9.2 | C29: 216 | D29: 14.5 | E29: 17.88336931 | F29: 28.18574511 | G29: 23.03455721
A30: 2015.11.20. 22:50 | B30: 9.2 | C30: 218 | D30: 11.4 | E30: 17.88336931 | F30: 22.15982719 | G30: 20.02159825
A31: 2015.11.20. 23:00 | B31: 9.7 | C31: 219 | D31: 13.5 | E31: 18.85529155 | F31: 26.24190061 | G31: 22.54859608
A32: 2015.11.20. 23:10 | B32: 9 | C32: 220 | D32: 11.6 | E32: 17.49460041 | F32: 22.54859608 | G32: 20.02159825
A33: 2015.11.20. 23:20 | B33: 9.3 | C33: 219 | D33: 13.3 | E33: 18.07775376 | F33: 25.85313172 | G33: 21.96544274
A34: 2015.11.20. 23:30 | B34: 8.6 | C34: 220 | D34: 12.6 | E34: 16.71706261 | F34: 24.49244057 | G34: 20.60475159
A35: 2015.11.20. 23:40 | B35: 8.8 | C35: 220 | D35: 10.9 | E35: 17.10583151 | F35: 21.18790494 | G35: 19.14686823
A36: 2015.11.20. 23:50 | B36: 8.5 | C36: 220 | D36: 11 | E36: 16.52267817 | F36: 21.38228939 | G36: 18.95248378
A37: 2015.11.21. 00:00 | B37: 8.1 | C37: 220 | D37: 10 | E37: 15.74514037 | F37: 19.4384449 | G37: 17.59179263
